lending/lending_fUSD_20250409
["ID","MTS","AMOUNT","RATE_DAILY","PERIOD"]
[357613205,1744235525863,-865.86,0.00039726,2]
[357613206,1744235525877,-734.44,0.00039726,2]
[357613207,1744235525892,-1213.14,0.00039726,2]
[357613208,1744235525909,-500.0,0.00039726,2]
[357613209,1744235525924,-510.47,0.00039726,2]
[357613210,1744235525938,-500.0,0.00039726,2]
[357613211,1744235525953,-500.0,0.00039726,2]
[357613212,1744235525967,-500.0,0.00039726,2]
[357613213,1744235525982,-1235.75,0.00039726,2]
[357613214,1744235525997,-514.16643523,0.00039726,2]
[357613215,1744235526013,-2062.74,0.00039726,2]
[357613216,1744235526029,-500.0,0.00039726,2]
[357613217,1744235526045,-500.0,0.00039726,2]
[357613218,1744235526060,-1627.43,0.00039726,2]
[357613219,1744235526076,-779.34,0.00039726,2]
[357613220,1744235526092,-1736.3,0.00039726,2]
[357613221,1744235526107,-500.0,0.00039726,2]
[357613222,1744235526123,-500.0,0.00039726,2]
[357613223,1744235526137,-500.0,0.00039726,2]
[357613224,1744235526151,-579.96,0.00039726,2]
[357613225,1744235526167,-431.19225438,0.00039726,2]
[357613226,1744235526182,-2303.11,0.00039726,2]
[357613227,1744235526196,-515.82200643,0.00039726,2]
[357613228,1744235526212,-21393.93,0.00039726,2]
[357613229,1744235526227,-663.86,0.00039726,2]
[357613230,1744235526242,-500.0,0.00039726,2]
[357613231,1744235526259,-1487.15,0.00039726,2]
[357613232,1744235526530,-500.0,0.00039726,2]
[357613233,1744235526574,-1444.32,0.00039726,2]
[357613234,1744235526583,-531.51,0.00039726,2]
[357613235,1744235526593,-798.61,0.00039726,2]
[357613236,1744235526602,-298.91993391,0.00039726,2]
[357613237,1744235526612,-1448.83,0.00039726,2]
[357613238,1744235526622,-1070.68,0.00039726,2]
[357613239,1744235526631,-500.0,0.00039726,2]
[357613240,1744235526640,-502.15613538,0.00039726,2]
[357613241,1744235526650,-675.07,0.00039726,2]
[357613242,1744235526659,-720.05,0.00039726,2]
[357613243,1744235526668,-4523.75,0.00039726,2]
[357613244,1744235526677,-1045.81,0.00039726,2]
[357613245,1744235526686,-2369.93,0.00039726,2]
[357613246,1744235526695,-500.0,0.00039726,2]
[357613247,1744235526704,-815.31,0.00039726,2]
[357613248,1744235526714,-513.93968221,0.00039726,2]
[357613249,1744235526723,-680.79,0.00039726,2]
[357613250,1744235526732,-513.04,0.00039726,2]
[357613251,1744235526741,-3877.45,0.00039726,2]
[357613252,1744235526750,-1072.51,0.00039726,2]
[357613253,1744235526759,-920.84,0.00039726,2]
[357613254,1744235526768,-500.0,0.00039726,2]
[357613255,1744235526777,-1250.82,0.00039726,2]
[357613256,1744235526786,-500.0,0.00039726,2]
[357613257,1744235526796,-1683.83,0.00039726,2]
[357613258,1744235526805,-512.15082624,0.00039726,2]
[357613259,1744235526814,-904.45,0.00039726,2]
[357613260,1744235526823,-500.0,0.00039726,2]
[357613261,1744235526832,-8073.34,0.00039726,2]
[357613262,1744235526841,-951.26,0.00039726,2]
[357613263,1744235526851,-500.0,0.00039726,2]
[357613264,1744235526860,-567.52,0.00039726,2]
[357613265,1744235526870,-500.0,0.00039726,2]
[357613266,1744235526879,-500.0,0.00039726,2]
[357613267,1744235526888,-510.98174561,0.00039726,2]
[357613268,1744235526897,-714.37,0.00039726,2]
[357613269,1744235526907,-507.52,0.00039726,2]
[357613270,1744235526916,-508.38220346,0.00039726,2]
[357613271,1744235526926,-1034.56,0.00039726,2]
[357613272,1744235526936,-7044.24,0.00039726,2]
[357613273,1744235526945,-593.89,0.00039726,2]
[357613274,1744235526955,-614.18,0.00039726,2]
[357613275,1744235526964,-500.0,0.00039726,2]
[357613276,1744235526973,-566.07092331,0.00039726,2]
[357613277,1744235526983,-500.0,0.00039726,2]
[357613278,1744235526992,-1165.25,0.00039726,2]
[357613279,1744235527001,-1119.95,0.00039726,2]
[357613280,1744235527011,-500.0,0.00039726,120]
[357613281,1744235527021,-500.0,0.00039726,2]
[357613282,1744235527031,-1010.11,0.00039726,2]
[357613283,1744235527040,-3541.99,0.00039726,2]
[357613284,1744235527049,-2285.66,0.00039726,2]
[357613285,1744235527059,-1097.67,0.00039726,2]
[357613286,1744235527068,-500.0,0.00039726,2]
[357613287,1744235527077,-500.0,0.00039726,2]
[357613288,1744235527088,-500.0,0.00039726,2]
[357613289,1744235527097,-737.02,0.00039726,2]
[357613290,1744235527106,-1205.42,0.00039726,2]
[357613291,1744235527115,-622.25,0.00039726,2]
[357613292,1744235527125,-626.72,0.00039726,2]
[357613293,1744235527134,-1595.13,0.00039726,2]
[357613294,1744235527143,-1037.81,0.00039726,2]
[357613295,1744235527152,-993.54,0.00039726,2]
[357613296,1744235527162,-500.0,0.00039726,2]
[357613297,1744235527171,-4569.67,0.00039726,2]
[357613298,1744235527181,-930.17,0.00039726,2]
[357613299,1744235527190,-597.13,0.00039726,2]
[357613300,1744235527200,-925.07,0.00039726,2]
[357613301,1744235527209,-500.0,0.00039726,2]
[357613302,1744235527220,-500.0,0.00039726,2]
[357613303,1744235527229,-500.0,0.00039726,2]
[357613304,1744235527239,-508.92512233,0.00039726,2]
[357613305,1744235527248,-605.12644617,0.00039726,2]
[357613306,1744235527258,-733.46,0.00039726,2]
[357613307,1744235527267,-500.0,0.00039726,2]
[357613308,1744235527276,-803.16,0.00039726,2]
[357613309,1744235527286,-1134.05,0.00039726,2]
[357613310,1744235527295,-500.0,0.00039726,2]
[357613311,1744235527304,-6999.86,0.00039726,2]
[357613312,1744235527314,-500.0,0.00039726,2]
[357613313,1744235527323,-2881.42,0.00039726,2]
[357613314,1744235527332,-500.0,0.00039726,2]
[357613315,1744235527341,-42423.7,0.00039726,2]
[357613316,1744235527351,-500.0,0.00039726,2]
[357613317,1744235527361,-1337.8,0.00039726,2]
[357613318,1744235527372,-1079.31,0.00039726,2]
[357613319,1744235527381,-509.05,0.00039726,2]
[357613320,1744235527390,-500.0,0.00039726,2]
[357613321,1744235527399,-500.0,0.00039726,2]
[357613322,1744235527409,-500.0,0.00039726,2]
[357613323,1744235527419,-512.2518492,0.00039726,2]
[357613324,1744235527430,-1032.24,0.00039726,2]
[357613325,1744235527439,-500.0,0.00039726,2]
[357613326,1744235527449,-1046.49,0.00039726,2]
[357613327,1744235527462,-1965.19,0.00039726,2]
[357613328,1744235527472,-1002.75,0.00039726,2]
[357613329,1744235527481,-23770.72,0.00039726,2]
[357613330,1744235527491,-500.0,0.00039726,2]
[357613331,1744235527501,-500.0,0.00039726,2]
[357613332,1744235527510,-500.0,0.00039726,2]
[357613333,1744235527520,-500.0,0.00039726,2]
[357613334,1744235527530,-1158.53,0.00039726,2]
[357613335,1744235527541,-500.0,0.00039726,2]
[357613336,1744235527553,-500.0,0.00039726,2]
[357613337,1744235527564,-500.0,0.00039726,2]
[357613338,1744235527574,-500.0,0.00039726,2]
[357613339,1744235527583,-2575.45,0.00039726,2]
[357613340,1744235527593,-839.12,0.00039726,2]
[357613341,1744235527603,-500.0,0.00039726,2]
[357613342,1744235527613,-500.0,0.00039726,2]
[357613343,1744235527624,-1417.52,0.00039726,2]
[357613344,1744235527633,-375.65,0.00039726,2]
[357613345,1744235527643,-507.98307328,0.00039726,2]
[357613346,1744235527652,-2351.29,0.00039726,2]
[357613347,1744235527662,-500.0,0.00039726,2]
[357613348,1744235527671,-925.42,0.00039726,2]
[357613349,1744235527680,-500.0,0.00039726,2]
[357613350,1744235527689,-500.0,0.00039726,2]
[357613351,1744235527699,-500.0,0.00039726,2]
[357613352,1744235527708,-500.0,0.00039726,2]
[357613353,1744235527718,-4543.65,0.00039726,2]
[357613354,1744235527727,-500.0,0.00039726,2]
[357613355,1744235527737,-589.28,0.00039726,2]
[357613356,1744235527747,-500.0,0.00039726,2]
[357613357,1744235527756,-1261.56,0.00039726,2]
[357613358,1744235527765,-908.44,0.00039726,2]
[357613359,1744235527774,-867.74,0.00039726,2]
[357613360,1744235527783,-907.73,0.00039726,2]
[357613361,1744235527792,-660.09,0.00039726,2]
[357613362,1744235527802,-1190.9,0.00039726,2]
[357613363,1744235527811,-4887.83,0.00039726,2]
[357613364,1744235527820,-500.0,0.00039726,2]
[357613365,1744235527830,-1267.15,0.00039726,2]
[357613366,1744235527839,-500.0,0.00039726,2]
[357613367,1744235527849,-500.0,0.00039726,2]
[357613368,1744235527858,-500.0,0.00039726,2]
[357613369,1744235527867,-575.82,0.00039726,2]
[357613370,1744235527876,-774.45,0.00039726,2]
[357613371,1744235527886,-2640.49,0.00039726,2]
[357613372,1744235527895,-929.61,0.00039726,2]
[357613373,1744235527904,-570.35,0.00039726,2]
[357613374,1744235527914,-1204.87,0.00039726,2]
[357613375,1744235527924,-775.07,0.00039726,2]
[357613376,1744235527933,-561.8,0.00039726,2]
[357613377,1744235527941,-535.49,0.00039726,2]
[357613378,1744235527950,-852.59,0.00039726,2]
[357613379,1744235527959,-706.53,0.00039726,2]
[357613380,1744235527969,-500.0,0.00039726,2]
[357613381,1744235527979,-1156.21,0.00039726,2]
[357613382,1744235527989,-1013.54,0.00039726,2]
[357613383,1744235527999,-1279.0,0.00039726,2]
[357613384,1744235528008,-1035.19,0.00039726,2]
[357613385,1744235528018,-846.03,0.00039726,2]
[357613386,1744235528028,-151.0,0.00039726,2]
[357613387,1744235528038,-2136.41,0.00039726,2]
[357613388,1744235528048,-500.0,0.00039726,2]
[357613389,1744235528057,-500.0,0.00039726,2]
[357613390,1744235528067,-500.0,0.00039726,2]
[357613391,1744235528077,-500.0,0.00039726,2]
[357613392,1744235528086,-4235.64,0.00039726,2]
[357613393,1744235528096,-592.54,0.00039726,2]
[357613394,1744235528106,-1028.37,0.00039726,2]
[357613395,1744235528116,-655.91,0.00039726,2]
[357613396,1744235528127,-774.63,0.00039726,2]
[357613397,1744235528137,-500.0,0.00039726,2]
[357613398,1744235528146,-668.99,0.00039726,2]
[357613399,1744235528156,-635.46,0.00039726,2]
[357613400,1744235528166,-500.0,0.00039726,2]
[357613401,1744235528175,-771.42,0.00039726,2]
[357613402,1744235528185,-500.0,0.00039726,2]
[357613403,1744235528195,-500.0,0.00039726,2]
[357613404,1744235528204,-500.0,0.00039726,2]
[357613405,1744235528215,-631.73,0.00039726,2]
[357613406,1744235528224,-1805.21,0.00039726,2]
[357613407,1744235528234,-500.0,0.00039726,2]
[357613408,1744235528243,-500.0,0.00039726,2]
[357613409,1744235528253,-500.0,0.00039726,2]
[357613410,1744235528263,-2082.58,0.00039726,2]
[357613411,1744235528273,-500.0,0.00039726,2]
[357613412,1744235528283,-950.96,0.00039726,2]
[357613413,1744235528292,-548.27,0.00039726,2]
[357613414,1744235528301,-777.86,0.00039726,2]
[357613415,1744235528311,-500.0,0.00039726,2]
[357613416,1744235528320,-720.17,0.00039726,2]
[357613417,1744235528330,-500.0,0.00039726,2]
[357613418,1744235528340,-1059.64,0.00039726,2]
[357613419,1744235528349,-587.39,0.00039726,2]
[357613420,1744235528359,-1208.61,0.00039726,2]
[357613421,1744235528369,-174266.75,0.00039726,2]
[357613422,1744235528378,-1106.78,0.00039726,2]
[357613423,1744235528388,-1260.1,0.00039726,2]
[357613424,1744235528397,-500.0,0.00039726,2]
[357613425,1744235528407,-500.0,0.00039726,2]
[357613426,1744235528416,-738.67,0.00039726,2]
[357613427,1744235528426,-500.0,0.00039726,2]
[357613428,1744235528435,-1252.62,0.00039726,2]
[357613429,1744235528446,-500.0,0.00039726,2]
[357613430,1744235528458,-1523.75,0.00039726,2]
[357613431,1744235528469,-500.0,0.00039726,2]
[357613432,1744235528478,-500.0,0.00039726,2]
[357613433,1744235528488,-818.49,0.00039726,2]
[357613434,1744235528498,-1179.84,0.00039726,2]
[357613435,1744235528510,-1025.1,0.00039726,2]
[357613436,1744235528520,-2893.36,0.00039726,2]
[357613437,1744235528531,-500.0,0.00039726,2]
[357613438,1744235528540,-764.1,0.00039726,2]
[357613439,1744235528551,-21329.92,0.00039726,2]
[357613440,1744235528560,-707.54,0.00039726,2]
[357613441,1744235528570,-500.0,0.00039726,2]
[357613442,1744235528580,-1217.62,0.00039726,2]
[357613443,1744235528589,-500.0,0.00039726,2]
[357613444,1744235528598,-500.0,0.00039726,2]
[357613445,1744235528607,-653.91,0.00039726,2]
[357613446,1744235528616,-2083.86,0.00039726,2]
[357613447,1744235528626,-500.0,0.00039726,2]
[357613448,1744235528636,-2729.49,0.00039726,2]
[357613449,1744235528645,-545.55,0.00039726,2]
[357613450,1744235528655,-500.0,0.00039726,2]
[357613451,1744235528664,-500.0,0.00039726,2]
[357613452,1744235528673,-510.38,0.00039726,2]
[357613453,1744235528682,-1954.17,0.00039726,2]
[357613454,1744235528692,-1354.05,0.00039726,2]
[357613455,1744235528701,-814.9,0.00039726,2]
[357613456,1744235528711,-500.0,0.00039726,2]
[357613457,1744235528720,-500.0,0.00039726,2]
[357613458,1744235528730,-1048.37,0.00039726,2]
[357613459,1744235528739,-500.0,0.00039726,2]
[357613460,1744235528749,-500.0,0.00039726,2]
[357613461,1744235528758,-4649.78,0.00039726,2]
[357613462,1744235528768,-1964.65,0.00039726,2]
[357613463,1744235528778,-500.0,0.00039726,2]
[357613464,1744235528787,-500.0,0.00039726,2]
[357613465,1744235528797,-694.5,0.00039726,2]
[357613466,1744235528806,-500.0,0.00039726,2]
[357613467,1744235528816,-1127.83,0.00039726,2]
[357613468,1744235528826,-463.14680253,0.00039726,2]
[357613469,1744235528836,-507.13,0.00039726,2]
[357613470,1744235528845,-500.0,0.00039726,2]
[357613471,1744235528855,-570.34,0.00039726,2]
[357613472,1744235528865,-1498.03,0.00039726,2]
[357613473,1744235528875,-809.55,0.00039726,2]
[357613474,1744235528885,-2525.83,0.00039726,2]
[357613475,1744235528897,-775.82,0.00039726,2]
[357613476,1744235528906,-500.0,0.00039726,2]
[357613477,1744235528915,-955.21,0.00039726,2]
[357613478,1744235528924,-500.0,0.00039726,2]
[357613479,1744235528933,-1151.05,0.00039726,2]
[357613480,1744235528942,-500.0,0.00039726,2]
[357613481,1744235528952,-500.0,0.00039726,2]
[357613482,1744235528961,-235.1971473,0.00039726,2]
[357613483,1744235528970,-969.06,0.00039726,2]
[357613484,1744235528980,-500.0,0.00039726,2]
[357613485,1744235528989,-500.0,0.00039726,2]
[357613486,1744235528999,-500.0,0.00039726,2]
[357613487,1744235529008,-511.52,0.00039726,2]
[357613488,1744235529017,-686.74,0.00039726,2]
[357613489,1744235529027,-507.91,0.00039726,2]
[357613490,1744235529037,-5051.26,0.00039726,2]
[357613491,1744235529046,-500.0,0.00039726,2]
[357613492,1744235529055,-500.0,0.00039726,2]
[357613493,1744235529064,-757.52,0.00039726,2]
[357613494,1744235529073,-500.0,0.00039726,15]
[357613495,1744235529083,-223.71177253,0.00039726,15]
[357613496,1744235529092,-500.0,0.00039726,15]
[357613497,1744235529102,-238.7336168,0.00039726,15]
[357613498,1744235529111,-500.0,0.00039726,15]
[357613499,1744235529120,-500.0,0.00039726,15]
[357613500,1744235529130,-200.0,0.0003975,14]
[357613501,1744235529140,-544.24429449,0.00039768,2]
[357613502,1744235529149,-151.041005,0.00039798,120]
[357613503,1744235529159,-150.0,0.00039799,3]
[357613504,1744235529168,-170469.44310841,0.000398,2]
[357613505,1744235529178,-342.06,0.00039868,2]
[357613506,1744235529188,-51252.3437684,0.0003996,2]
[357613507,1744235529198,-150.0,0.00039999,3]
[357613508,1744235529207,-1053.7745446,0.0004,2]
[357613509,1744235529217,-3715.6,0.0004,4]
[357613510,1744235529226,-563.06933309,0.0004,120]
[357613511,1744235529236,-284.14478141,0.0004,120]
[357613512,1744235529245,-506.57862803,0.0004,120]
[357613513,1744235529255,-1800.0,0.0004,41]
[357613514,1744235529264,-500.59955919,0.0004,4]
[357613515,1744235529273,-252.55,0.0004,14]
[357613516,1744235529283,-3431.66000563,0.0004,10]
[357613517,1744235529292,-33904.84369479,0.0004,3]
[357613518,1744235529302,-7993.45934958,0.0004,2]
[357613519,1744235529312,-776.31812158,0.0004,5]
[357613520,1744235529322,-1913.95687179,0.0004,15]
[357613521,1744235529331,-316376.97945618,0.0004,30]
[357613522,1744235529341,-321.96722833,0.0004,14]
[357613523,1744235529351,-165.74746155,0.0004,30]
[357613524,1744235529360,-150.0,0.0004,2]
[357613525,1744235529370,-500.0,0.0004,120]
[357613526,1744235529380,-150.0,0.0004,2]
[357613527,1744235529390,-94773.12368267,0.0004,30]
[357613528,1744235529400,-500.0,0.0004,2]
[357613529,1744235529409,-500.0,0.0004,2]
[357613530,1744235529419,-500.0,0.0004,2]
[357613531,1744235529429,-1000.0,0.0004,2]
[357613532,1744235529439,-266.297151,0.0004,120]
[357613533,1744235529449,-500.0,0.0004,2]
[357613534,1744235529461,-500.0,0.0004,2]
[357613535,1744235529471,-768.82,0.0004,2]
[357613536,1744235529480,-1033.22,0.0004,2]
[357613537,1744235529490,-500.0,0.0004,2]
[357613538,1744235529501,-500.0,0.0004,2]
[357613539,1744235529511,-690.19,0.0004,2]
[357613540,1744235529520,-500.0,0.0004,2]
[357613541,1744235529530,-500.0,0.0004,2]
[357613542,1744235529540,-653.93,0.0004,2]
[357613543,1744235529550,-500.0,0.0004,2]
[357613544,1744235529560,-500.0,0.0004,2]
[357613545,1744235529569,-500.0,0.0004,2]
[357613546,1744235529579,-500.0,0.0004,2]
[357613547,1744235529589,-500.0,0.0004,2]
[357613548,1744235529598,-513.9815467,0.0004,2]
[357613549,1744235529608,-500.0,0.0004,2]
[357613550,1744235529618,-562.39,0.0004,2]
[357613551,1744235529628,-649.03832283,0.0004,2]
[357613552,1744235529638,-500.0,0.0004,2]
[357613553,1744235529647,-500.0,0.0004,2]
[357613554,1744235529657,-500.0,0.0004,2]
[357613555,1744235529667,-500.0,0.0004,2]
[357613556,1744235529677,-523.63,0.0004,2]
[357613557,1744235529686,-575.25,0.0004,2]
[357613558,1744235529696,-643.66,0.0004,2]
[357613559,1744235529705,-500.0,0.0004,2]
[357613560,1744235529715,-500.0,0.0004,2]
[357613561,1744235529724,-500.0,0.0004,2]
[357613562,1744235529733,-517.26,0.0004,2]
[357613563,1744235529742,-500.0,0.0004,2]
[357613564,1744235529751,-500.0,0.0004,2]
[357613565,1744235529761,-509.1,0.0004,2]
[357613566,1744235529770,-544.02,0.0004,2]
[357613567,1744235529779,-1591.25,0.0004,2]
[357613568,1744235529788,-500.0,0.0004,2]
[357613569,1744235529797,-296.56722371,0.0004,2]
[357613570,1744235529807,-922.766495,0.0004,2]
[357613571,1744235529816,-500.0,0.0004,2]
[357613572,1744235529825,-500.0,0.0004,2]
[357613573,1744235529835,-500.0,0.0004,2]
[357613574,1744235529844,-512.21,0.0004,2]
[357613575,1744235529855,-1481.605419,0.0004,2]
[357613576,1744235529864,-500.0,0.0004,2]
[357613577,1744235529874,-575.18,0.0004,2]
[357613578,1744235530110,-210.36570697,0.0004,2]
[357613579,1744235530121,-1103.241651,0.0004,2]
[357613580,1744235530130,-500.0,0.0004,2]
[357613581,1744235530140,-152.130457,0.0004,2]
[357613582,1744235530150,-555.55,0.0004,2]
[357613583,1744235530160,-716.17,0.0004,2]
[357613584,1744235530169,-569.8,0.0004,2]
[357613585,1744235530178,-500.0,0.0004,2]
[357613586,1744235530188,-500.0,0.0004,2]
[357613587,1744235530197,-500.0,0.0004,2]
[357613588,1744235530206,-313.09710958,0.0004,2]
[357613589,1744235530216,-500.0,0.0004,2]
[357613590,1744235530225,-593.96021276,0.0004,2]
[357613591,1744235530235,-500.0,0.0004,2]
[357613592,1744235530244,-500.0,0.0004,2]
[357613593,1744235530254,-500.0,0.0004,2]
[357613594,1744235530263,-500.0,0.0004,2]
[357613595,1744235530273,-523.55,0.0004,2]
[357613596,1744235530282,-500.0,0.0004,2]
[357613597,1744235530291,-500.0,0.0004,2]
[357613598,1744235530301,-641.56,0.0004,2]
[357613599,1744235530310,-522.12,0.0004,2]
[357613600,1744235530320,-671.33,0.0004,2]
[357613601,1744235530330,-500.0,0.0004,2]
[357613602,1744235530339,-500.0,0.0004,2]
[357613603,1744235530349,-898.3,0.0004,2]
[357613604,1744235530358,-500.0,0.0004,2]
[357613605,1744235530368,-500.0,0.0004,2]
[357613606,1744235530378,-502.48437426,0.0004,2]
[357613607,1744235530388,-500.0,0.0004,2]
[357613608,1744235530397,-500.0,0.0004,2]
[357613609,1744235530407,-500.0,0.0004,2]
[357613610,1744235530416,-500.0,0.0004,2]
[357613611,1744235530426,-500.0,0.0004,2]
[357613612,1744235530435,-156.788597,0.0004,2]
[357613613,1744235530445,-1488.11,0.0004,2]
[357613614,1744235530457,-1000.0,0.0004,2]
[357613615,1744235530467,-500.0,0.0004,2]
[357613616,1744235530476,-500.0,0.0004,2]
[357613617,1744235530486,-500.0,0.0004,2]
[357613618,1744235530495,-500.0,0.0004,2]
[357613619,1744235530506,-1346.88,0.0004,2]
[357613620,1744235530516,-500.0,0.0004,2]
[357613621,1744235530525,-600.91,0.0004,2]
[357613622,1744235530537,-500.0,0.0004,2]
[357613623,1744235530546,-500.0,0.0004,2]
[357613624,1744235530555,-269.86110312,0.0004,2]
[357613625,1744235530565,-500.0,0.0004,2]
[357613626,1744235530575,-500.0,0.0004,2]
[357613627,1744235530585,-1109.78,0.0004,2]
[357613628,1744235530595,-1062.56,0.0004,2]
[357613629,1744235530605,-1328.67,0.0004,2]
[357613630,1744235530614,-1098.1,0.0004,2]
[357613631,1744235530625,-500.0,0.0004,2]
[357613632,1744235530635,-500.0,0.0004,2]
[357613633,1744235530644,-500.0,0.0004,2]
[357613634,1744235530654,-601.54,0.0004,2]
[357613635,1744235530665,-500.0,0.0004,2]
[357613636,1744235530674,-500.0,0.0004,2]
[357613637,1744235530684,-500.0,0.0004,2]
[357613638,1744235530694,-2058.98,0.0004,2]
[357613639,1744235530704,-500.0,0.0004,2]
[357613640,1744235530714,-704.15,0.0004,2]
[357613641,1744235530724,-500.0,0.0004,2]
[357613642,1744235530734,-500.0,0.0004,2]
[357613643,1744235530744,-500.0,0.0004,2]
[357613644,1744235530754,-500.0,0.0004,2]
[357613645,1744235530764,-500.0,0.0004,2]
[357613646,1744235530774,-392.97322518,0.0004,2]
[357613647,1744235530783,-1533.75,0.0004,2]
[357613648,1744235530792,-890.15,0.0004,2]
[357613649,1744235530801,-2033.59,0.0004,2]
[357613650,1744235530811,-1091.45,0.0004,2]
[357613651,1744235530821,-500.0,0.0004,2]
[357613652,1744235530831,-998.38,0.0004,2]
[357613653,1744235530841,-194.83874923,0.0004,2]
[357613654,1744235530851,-990.73,0.0004,2]
[357613655,1744235530861,-740.02,0.0004,2]
[357613656,1744235530871,-500.0,0.0004,2]
[357613657,1744235530880,-840.51,0.0004,2]
[357613658,1744235530889,-1255.28,0.0004,2]
[357613659,1744235530898,-628.73,0.0004,2]
[357613660,1744235530907,-500.0,0.0004,2]
[357613661,1744235530917,-1122.08,0.0004,2]
[357613662,1744235530926,-851.89,0.0004,2]
[357613663,1744235530936,-500.0,0.0004,2]
[357613664,1744235530946,-500.0,0.0004,2]
[357613665,1744235530956,-500.0,0.0004,2]
[357613666,1744235530966,-1594.69,0.0004,2]
[357613667,1744235530976,-846.31,0.0004,2]
[357613668,1744235530986,-500.0,0.0004,2]
[357613669,1744235530996,-500.0,0.0004,2]
[357613670,1744235531005,-634.01,0.0004,2]
[357613671,1744235531015,-500.0,0.0004,2]
[357613672,1744235531025,-500.0,0.0004,2]
[357613673,1744235531034,-500.0,0.0004,2]
[357613674,1744235531044,-1789.24,0.0004,2]
[357613675,1744235531054,-500.0,0.0004,2]
[357613676,1744235531064,-500.0,0.0004,2]
[357613677,1744235531073,-500.0,0.0004,2]
[357613678,1744235531083,-2100.49,0.0004,2]
[357613679,1744235531093,-500.0,0.0004,2]
[357613680,1744235531103,-500.0,0.0004,2]
[357613681,1744235531113,-1008.97,0.0004,2]
[357613682,1744235531124,-904.2,0.0004,2]
[357613683,1744235531133,-575.38,0.0004,2]
[357613684,1744235531143,-980.91,0.0004,2]
[357613685,1744235531153,-744.07,0.0004,2]
[357613686,1744235531163,-512.17426832,0.0004,2]
[357613687,1744235531172,-500.0,0.0004,2]
[357613688,1744235531182,-500.0,0.0004,2]
[357613689,1744235531192,-1364.94,0.0004,2]
[357613690,1744235531202,-500.0,0.0004,2]
[357613691,1744235531211,-500.0,0.0004,2]
[357613692,1744235531221,-747.87,0.0004,2]
[357613693,1744235531231,-500.0,0.0004,2]
[357613694,1744235531242,-850.11,0.0004,2]
[357613695,1744235531252,-1247.64,0.0004,2]
[357613696,1744235531261,-1000.0,0.0004,30]
[357613697,1744235531271,-1102.32,0.0004,2]
[357613698,1744235531281,-659.47,0.0004,2]
[357613699,1744235531290,-588.76,0.0004,2]
[357613700,1744235531300,-500.0,0.0004,2]
[357613701,1744235531310,-500.0,0.0004,2]
[357613702,1744235531320,-626.4,0.0004,2]
[357613703,1744235531330,-500.0,0.0004,2]
[357613704,1744235531339,-500.0,0.0004,2]